fUST/lending_fUST_20240227
["ID","MTS","AMOUNT","RATE_DAILY","PERIOD"]
[315258155,1708969840148,-501.17230716,0.00019452,2]
[315258156,1708969840157,-500.0,0.00019452,2]
[315258157,1708969840166,-500.0,0.00019452,2]
[315258158,1708969840177,-500.0,0.00019452,2]
[315258159,1708969840186,-500.0,0.00019452,2]
[315258160,1708969840197,-604.40046169,0.00019452,2]
[315258161,1708969840207,-500.0,0.00019452,2]
[315258162,1708969840218,-500.0,0.00019452,2]
[315258163,1708969840228,-500.0,0.00019452,2]
[315258164,1708969840239,-500.0,0.00019452,2]
[315258165,1708969840254,-500.0,0.00019452,2]
[315258166,1708969840265,-500.0,0.00019452,2]
[315258167,1708969840273,-1512.73,0.00019452,2]
[315258168,1708969840283,-307.43320476,0.00019452,2]
[315258170,1708969840292,-635.14,0.00019452,2]
[315258171,1708969840302,-500.0,0.00019452,2]
[315258172,1708969840317,-689.29,0.00019452,2]
[315258173,1708969840327,-500.0,0.00019452,2]
[315258174,1708969840338,-285.47079158,0.00019452,2]
[315258176,1708969840346,-500.0,0.00019452,2]
[315258177,1708969840355,-500.0,0.00019452,2]
[315258178,1708969840364,-500.0,0.00019452,2]
[315258179,1708969840374,-597.23,0.00019452,2]
[315258180,1708969840383,-500.0,0.00019452,2]
[315258181,1708969840392,-965.26,0.00019452,2]
[315258183,1708969840401,-500.0,0.00019452,2]
[315258184,1708969840410,-676.88,0.00019452,2]
[315258185,1708969840419,-739.23,0.00019452,2]
[315258186,1708969840428,-500.0,0.00019452,2]
[315258187,1708969840437,-507.21,0.00019452,2]
[315258188,1708969840449,-500.0,0.00019452,2]
[315258190,1708969840458,-625.77,0.00019452,2]
[315258191,1708969840468,-1461.49,0.00019452,2]
[315258192,1708969840476,-500.0,0.00019452,2]
[315258193,1708969840486,-500.0,0.00019452,2]
[315258194,1708969840495,-500.0,0.00019452,2]
[315258195,1708969840504,-888.15,0.00019452,2]
[315258196,1708969840514,-1024.13,0.00019452,2]
[315258198,1708969840526,-500.0,0.00019452,2]
[315258200,1708969840535,-500.0,0.00019452,2]
[315258202,1708969840544,-356.05453121,0.00019452,2]
[315258204,1708969840554,-1399.8,0.00019452,2]
[315258206,1708969840563,-10437.68,0.00019452,2]
[315258208,1708969840572,-1131.68,0.00019452,2]
[315258210,1708969840581,-500.0,0.00019452,2]
[315258212,1708969840590,-1586.57,0.00019452,2]
[315258213,1708969840599,-500.0,0.00019452,2]
[315258215,1708969840608,-452.30101348,0.00019452,2]
[315258217,1708969840618,-5277.09,0.00019452,2]
[315258219,1708969840627,-1126.07,0.00019452,2]
[315258221,1708969840636,-500.0,0.00019452,2]
[315258223,1708969840645,-1961.44,0.00019452,2]
[315258225,1708969840654,-500.0,0.00019452,2]
[315258227,1708969840663,-1183.32,0.00019452,2]
[315258229,1708969840671,-500.0,0.00019452,2]
[315258231,1708969840680,-500.0,0.00019452,2]
[315258233,1708969840692,-858.21,0.00019452,2]
[315258235,1708969840701,-1212.5,0.00019452,2]
[315258237,1708969840711,-540.64,0.00019452,2]
[315258239,1708969840720,-500.0,0.00019452,2]
[315258241,1708969840729,-4716.03,0.00019452,2]
[315258243,1708969840738,-2517.97,0.00019452,2]
[315258245,1708969840747,-10889.35,0.00019452,2]
[315258247,1708969840756,-166.666666,0.00019627,2]
[315258249,1708969840766,-500.0,0.00019726,2]
[315258251,1708969840775,-500.0,0.00019726,2]
[315258253,1708969840784,-686.49,0.00019726,2]
[315258254,1708969840794,-500.0,0.00019726,2]
[315258256,1708969840803,-500.0,0.00019726,2]
[315258258,1708969840812,-500.0,0.00019726,2]
[315258261,1708969840822,-500.0,0.00019726,2]
[315258262,1708969840832,-635.83996825,0.00019726,2]
[315258265,1708969840841,-500.0,0.00019726,2]
[315258266,1708969840850,-500.0,0.00019726,2]
[315258268,1708969840860,-1000.0,0.00019726,2]
[315258270,1708969840869,-500.0,0.00019726,2]
[315258272,1708969840878,-500.0,0.00019726,2]
[315258274,1708969840887,-500.0,0.00019726,2]
[315258276,1708969840896,-500.0,0.00019726,2]
[315258278,1708969840905,-1512.73,0.00019726,2]
[315258280,1708969840914,-635.14,0.00019726,2]
[315258282,1708969840923,-500.0,0.00019726,2]
[315258284,1708969840932,-689.29,0.00019726,2]
[315258286,1708969840943,-500.0,0.00019726,2]
[315258288,1708969840952,-500.0,0.00019726,2]
[315258290,1708969840961,-597.23,0.00019726,2]
[315258291,1708969840970,-500.0,0.00019726,2]
[315258293,1708969840980,-965.26,0.00019726,2]
[315258295,1708969840989,-500.0,0.00019726,2]
[315258297,1708969840998,-676.88,0.00019726,2]
[315258299,1708969841007,-739.23,0.00019726,2]
[315258301,1708969841016,-500.0,0.00019726,2]
[315258303,1708969841025,-507.21,0.00019726,2]
[315258305,1708969841034,-625.77,0.00019726,2]
[315258307,1708969841043,-1461.49,0.00019726,2]
[315258309,1708969841053,-500.0,0.00019726,2]
[315258321,1708969841156,-500.0,0.00019726,2]
[315258323,1708969841166,-500.0,0.00019726,2]
[315258325,1708969841175,-888.15,0.00019726,2]
[315258327,1708969841184,-1024.13,0.00019726,2]
[315258329,1708969841195,-500.0,0.00019726,2]
[315258331,1708969841204,-500.0,0.00019726,2]
[315258333,1708969841213,-1399.8,0.00019726,2]
[315258335,1708969841222,-10437.68,0.00019726,2]
[315258337,1708969841231,-1131.68,0.00019726,2]
[315258339,1708969841241,-500.0,0.00019726,2]
[315258341,1708969841253,-1586.57,0.00019726,2]
[315258343,1708969841262,-5277.09,0.00019726,2]
[315258344,1708969841271,-1126.07,0.00019726,2]
[315258346,1708969841281,-609.4828341,0.00019726,2]
[315258348,1708969841290,-1961.44,0.00019726,2]
[315258350,1708969841299,-500.0,0.00019726,2]
[315258352,1708969841308,-1183.32,0.00019726,2]
[315258354,1708969841317,-500.0,0.00019726,2]
[315258356,1708969841327,-500.0,0.00019726,2]
[315258358,1708969841337,-858.21,0.00019726,2]
[315258360,1708969841346,-1212.5,0.00019726,2]
[315258362,1708969841355,-540.64,0.00019726,2]
[315258364,1708969841365,-500.0,0.00019726,2]
[315258366,1708969841374,-4716.03,0.00019726,2]
[315258368,1708969841383,-2517.97,0.00019726,2]
[315258370,1708969841392,-10889.35,0.00019726,2]
[315258372,1708969841401,-437.96965206,0.00019751,2]
[315258373,1708969841411,-8230.24916882,0.0001989,2]
[315258374,1708969841420,-655.29226629,0.00019997,2]
[315258375,1708969841429,-399.333294,0.00019999,2]
[315258376,1708969841438,-500.0,0.00019999,2]
[315258377,1708969841449,-500.0,0.00019999,2]
[315258378,1708969841458,-500.0,0.00019999,2]
[315258379,1708969841467,-319.09963093,0.00019999,2]
[315258380,1708969841476,-500.0,0.0002,2]
[315258381,1708969841485,-500.0,0.0002,2]
[315258382,1708969841495,-686.49,0.0002,2]
[315258383,1708969841504,-500.0,0.0002,2]
[315258384,1708969841514,-501.88019527,0.0002,2]
[315258385,1708969841522,-195.0089163,0.0002,2]
[315258386,1708969841531,-500.0,0.0002,2]
[315258387,1708969841540,-1512.73,0.0002,2]
[315258388,1708969841551,-635.14,0.0002,2]
[315258389,1708969841561,-500.0,0.0002,2]
[315258390,1708969841570,-689.29,0.0002,2]
[315258391,1708969841579,-500.0,0.0002,2]
[315258392,1708969841589,-597.23,0.0002,2]
[315258393,1708969841599,-965.26,0.0002,2]
[315258394,1708969841609,-436.95590383,0.0002,2]
[315258395,1708969841618,-676.88,0.0002,2]
[315258396,1708969841628,-739.23,0.0002,2]
[315258397,1708969841638,-500.0,0.0002,2]
[315258398,1708969841647,-507.21,0.0002,2]
[315258399,1708969841657,-625.77,0.0002,2]
[315258401,1708969841666,-1461.49,0.0002,2]
[315258403,1708969841677,-500.0,0.0002,2]
[315258405,1708969841687,-500.0,0.0002,2]
[315258407,1708969841700,-500.0,0.0002,2]
[315258409,1708969841709,-888.15,0.0002,2]
[315258411,1708969841718,-1024.13,0.0002,2]
[315258413,1708969841727,-500.0,0.0002,2]
[315258415,1708969841736,-500.0,0.0002,2]
[315258417,1708969841746,-1399.8,0.0002,2]
[315258419,1708969841755,-10437.68,0.0002,2]
[315258421,1708969841764,-1131.68,0.0002,2]
[315258423,1708969841773,-1586.57,0.0002,2]
[315258425,1708969841782,-5277.09,0.0002,2]
[315258427,1708969841792,-1126.07,0.0002,2]
[315258429,1708969841801,-1961.44,0.0002,2]
[315258431,1708969841810,-500.0,0.0002,2]
[315258433,1708969841819,-1183.32,0.0002,2]
[315258435,1708969841829,-350.16228113,0.0002,2]
[315258437,1708969841838,-858.21,0.0002,2]
[315258439,1708969841847,-1212.5,0.0002,2]
[315258440,1708969841856,-540.64,0.0002,2]
[315258443,1708969841866,-500.0,0.0002,2]
[315258444,1708969841876,-4716.03,0.0002,2]
[315258446,1708969841886,-2517.97,0.0002,2]
[315258448,1708969841895,-10889.35,0.0002,2]
[315258449,1708969841904,-166.666666,0.00020076,2]
[315258451,1708969841915,-437.96965206,0.00020088,2]
[315258453,1708969841924,-399.333294,0.00020219,2]
[315258455,1708969841934,-243.58118859,0.00020219,2]
[315258457,1708969841945,-399.333294,0.00020219,2]
[315258459,1708969841954,-243.58118859,0.00020219,2]
[315258461,1708969841963,-12509.660813,0.0002022,2]
[315258462,1708969841972,-50000.0,0.0002022,2]
[315258464,1708969841981,-54399.72356364,0.0002022,2]
[315258466,1708969841991,-5000.0,0.0002022,2]
[315258468,1708969842001,-50000.0,0.00020221,2]
[315258469,1708969842010,-52207.16672811,0.00020221,2]
[315258470,1708969842019,-37660.49437314,0.00020222,2]
[315258471,1708969842029,-33795.56062427,0.00020243,2]
[315258472,1708969842040,-498.21773786,0.00020244,2]
[315258473,1708969842050,-7655.7109047,0.00020244,2]
[315258474,1708969842060,-2369.19378242,0.00020245,2]
[315258475,1708969842069,-185.75813473,0.00020247,2]
[315258476,1708969842079,-500.0,0.00020273,2]
[315258477,1708969842088,-686.49,0.00020273,2]
[315258478,1708969842097,-500.0,0.00020273,2]
[315258479,1708969842107,-1512.73,0.00020273,2]
[315258480,1708969842116,-500.0,0.00020273,2]
[315258481,1708969842126,-635.14,0.00020273,2]
[315258482,1708969842135,-689.29,0.00020273,2]
[315258483,1708969842144,-500.0,0.00020273,2]
[315258484,1708969842154,-597.23,0.00020273,2]
[315258485,1708969842163,-965.26,0.00020273,2]
[315258486,1708969842172,-676.88,0.00020273,2]
[315258487,1708969842182,-739.23,0.00020273,2]
[315258488,1708969842192,-500.0,0.00020273,2]
[315258489,1708969842202,-507.21,0.00020273,2]
[315258490,1708969842211,-625.77,0.00020273,2]
[315258491,1708969842221,-1461.49,0.00020273,2]
[315258492,1708969842230,-500.0,0.00020273,2]
[315258493,1708969842240,-500.0,0.00020273,2]
[315258494,1708969842253,-888.15,0.00020273,2]
[315258495,1708969842263,-1024.13,0.00020273,2]
[315258496,1708969842272,-500.0,0.00020273,2]
[315258497,1708969842282,-500.0,0.00020273,2]
[315258498,1708969842291,-1399.8,0.00020273,2]
[315258499,1708969842300,-10437.68,0.00020273,2]
[315258500,1708969842310,-1131.68,0.00020273,2]
[315258501,1708969842319,-1586.57,0.00020273,2]
[315258502,1708969842329,-5277.09,0.00020273,2]
[315258503,1708969842338,-1126.07,0.00020273,2]
[315258504,1708969842348,-1961.44,0.00020273,2]
[315258505,1708969842357,-500.0,0.00020273,2]
[315258506,1708969842367,-1183.32,0.00020273,2]
[315258507,1708969842376,-858.21,0.00020273,2]
[315258508,1708969842386,-1212.5,0.00020273,2]
[315258509,1708969842396,-540.64,0.00020273,2]
[315258510,1708969842407,-500.0,0.00020273,2]
[315258511,1708969842420,-4716.03,0.00020273,2]
[315258512,1708969842433,-2517.97,0.00020273,2]
[315258513,1708969842447,-10889.35,0.00020273,2]
[315258514,1708969842458,-437.96965206,0.00020424,2]
[315258515,1708969842470,-243.58118859,0.00020446,2]
[315258516,1708969842481,-500.0,0.00020446,2]
[315258517,1708969842491,-500.0,0.00020446,2]
[315258518,1708969842501,-500.0,0.00020446,2]
[315258519,1708969842512,-500.0,0.00020446,2]
[315258520,1708969842524,-500.0,0.00020446,2]
[315258521,1708969842535,-500.0,0.00020446,2]
[315258522,1708969842546,-500.0,0.00020446,2]
[315258523,1708969842557,-256.44210122,0.00020446,2]
[315258524,1708969842569,-399.333294,0.00020446,2]
[315258525,1708969842580,-243.58118859,0.00020446,2]
[315258527,1708969842592,-271054.26506646,0.00020447,2]
[315258529,1708969842602,-166.666666,0.00020524,2]
[315258530,1708969842613,-608.82,0.00020538,3]
[315258531,1708969842624,-304.4,0.00020538,3]
[315258532,1708969842634,-686.49,0.00020547,2]
[315258534,1708969842644,-500.0,0.00020547,2]
[315258535,1708969842654,-1512.73,0.00020547,2]
[315258536,1708969842665,-500.0,0.00020547,2]
[315258537,1708969842676,-635.14,0.00020547,2]
[315258538,1708969842686,-689.29,0.00020547,2]
[315258539,1708969842700,-500.0,0.00020547,2]
[315258540,1708969842711,-597.23,0.00020547,2]
[315258541,1708969842722,-965.26,0.00020547,2]
[315258542,1708969842732,-676.88,0.00020547,2]
[315258543,1708969842744,-739.23,0.00020547,2]
[315258544,1708969842754,-500.0,0.00020547,2]
[315258546,1708969842766,-507.21,0.00020547,2]
[315258548,1708969842777,-625.77,0.00020547,2]
[315258550,1708969842787,-1461.49,0.00020547,2]
[315258552,1708969842797,-500.0,0.00020547,2]
[315258556,1708969842806,-500.0,0.00020547,2]
[315258559,1708969842817,-888.15,0.00020547,2]
[315258560,1708969842830,-1024.13,0.00020547,2]
[315258563,1708969842843,-253.68558529,0.00020547,2]
[315258564,1708969842853,-500.0,0.00020547,2]
[315258566,1708969842865,-1399.8,0.00020547,2]
[315258568,1708969842876,-10437.68,0.00020547,2]
[315258571,1708969842886,-1131.68,0.00020547,2]
[315258573,1708969842897,-1586.57,0.00020547,2]
[315258575,1708969842906,-5277.09,0.00020547,2]
[315258577,1708969842917,-1126.07,0.00020547,2]
[315258579,1708969842929,-1961.44,0.00020547,2]
[315258581,1708969842941,-500.0,0.00020547,2]
[315258583,1708969842952,-1183.32,0.00020547,2]
[315258585,1708969842963,-858.21,0.00020547,2]
[315258587,1708969842974,-1212.5,0.00020547,2]
[315258589,1708969842986,-540.64,0.00020547,2]
[315258592,1708969842998,-500.0,0.00020547,2]
[315258594,1708969843009,-4716.03,0.00020547,2]
[315258596,1708969843021,-2517.97,0.00020547,2]
[315258598,1708969843032,-10889.35,0.00020547,2]
[315258600,1708969843045,-500.0,0.00020589,2]
[315258603,1708969843056,-500.0,0.00020733,2]
[315258605,1708969843065,-1000.0,0.00020736,2]
[315258607,1708969843075,-1000.0,0.00020746,2]
[315258609,1708969843085,-300.0,0.00020756,2]
[315258611,1708969843094,-1000.0,0.00020764,2]
[315258613,1708969843104,-1000.0,0.00020797,2]
[315258615,1708969843115,-686.49,0.00020821,2]
[315258617,1708969843126,-500.0,0.00020821,2]
[315258619,1708969843139,-1512.73,0.00020821,2]
[315258621,1708969843149,-500.0,0.00020821,2]
[315258623,1708969843159,-635.14,0.00020821,2]
[315258625,1708969843169,-689.29,0.00020821,2]
[315258627,1708969843180,-500.0,0.00020821,2]
[315258629,1708969843193,-597.23,0.00020821,2]
[315258632,1708969843203,-965.26,0.00020821,2]
[315258634,1708969843214,-676.88,0.00020821,2]
[315258636,1708969843223,-739.23,0.00020821,2]
[315258638,1708969843234,-500.0,0.00020821,2]
[315258640,1708969843247,-507.21,0.00020821,2]
[315258642,1708969843257,-625.77,0.00020821,2]
[315258644,1708969843268,-1461.49,0.00020821,2]
[315258646,1708969843278,-500.0,0.00020821,2]
[315258648,1708969843288,-500.0,0.00020821,2]
[315258650,1708969843298,-888.15,0.00020821,2]
[315258652,1708969843308,-1024.13,0.00020821,2]
[315258654,1708969843318,-500.0,0.00020821,2]
[315258656,1708969843331,-1399.8,0.00020821,2]
[315258658,1708969843342,-10437.68,0.00020821,2]
[315258661,1708969843352,-1131.68,0.00020821,2]
[315258663,1708969843362,-1586.57,0.00020821,2]
[315258664,1708969843373,-5277.09,0.00020821,2]
[315258666,1708969843384,-1126.07,0.00020821,2]
[315258669,1708969843394,-1961.44,0.00020821,2]
[315258671,1708969843405,-500.0,0.00020821,2]
[315258673,1708969843415,-1183.32,0.00020821,2]
[315258675,1708969843425,-858.21,0.00020821,2]
[315258677,1708969843436,-1212.5,0.00020821,2]
[315258678,1708969843449,-540.64,0.00020821,2]
[315258680,1708969843459,-500.0,0.00020821,2]
[315258682,1708969843470,-4716.03,0.00020821,2]
[315258685,1708969843480,-2517.97,0.00020821,2]
[315258687,1708969843490,-10889.35,0.00020821,2]
[315258688,1708969843502,-1000.0,0.00020822,2]
[315258689,1708969843512,-500.0,0.00020876,2]
[315258690,1708969843521,-500.0,0.00020899,2]
[315258691,1708969843533,-500.0,0.00020899,2]
[315258692,1708969843545,-500.0,0.00020899,2]
[315258693,1708969843555,-500.0,0.00020899,2]
[315258694,1708969843566,-500.0,0.00020899,2]
[315258695,1708969843576,-500.0,0.00020899,2]
[315258696,1708969843587,-500.0,0.00020899,2]
[315258697,1708969843597,-500.0,0.00020899,2]
[315258698,1708969843607,-500.0,0.00020899,2]
[315258699,1708969843618,-643.59909627,0.00020899,2]
[315258700,1708969843628,-1000.0,0.0002091,2]
[315258701,1708969843638,-380.12472515,0.00020934,2]
[315258702,1708969843648,-166.666666,0.00020973,2]
[315258703,1708969843658,-222.64217164,0.00020988,2]
[315258704,1708969843669,-1000.0,0.00020992,2]
[315258705,1708969843680,-621.76461331,0.00020997,2]
[315258706,1708969843691,-428.88796945,0.00020998,2]
[315258707,1708969843702,-166.14213211,0.00020998,2]
[315258708,1708969843711,-160.0,0.00020999,2]
[315258709,1708969843723,-160.0,0.00020999,2]
[315258710,1708969843732,-160.0,0.00020999,2]
[315258711,1708969843743,-160.0,0.00020999,2]
[315258712,1708969843753,-273.23870182,0.00020999,2]
[315258713,1708969843763,-592.62659572,0.00020999,2]
[315258714,1708969843774,-500.0,0.00020999,2]
[315258715,1708969843784,-500.0,0.00020999,2]
[315258716,1708969843794,-500.0,0.00020999,2]
[315258717,1708969843804,-500.0,0.00020999,2]
[315258718,1708969843815,-504.30152684,0.00020999,2]
[315258719,1708969843825,-500.0,0.00020999,2]
[315258720,1708969843961,-500.0,0.00020999,2]
[315258721,1708969843977,-500.0,0.00020999,2]
[315258722,1708969843988,-500.0,0.00020999,2]
[315258723,1708969843998,-500.0,0.00020999,2]
[315258724,1708969844008,-500.0,0.00020999,2]
[315258725,1708969844018,-500.0,0.00020999,2]
[315258726,1708969844028,-500.0,0.00020999,2]
[315258727,1708969844038,-500.0,0.00020999,2]
[315258728,1708969844047,-500.0,0.00020999,2]
[315258729,1708969844056,-500.0,0.00020999,2]
[315258730,1708969844065,-500.0,0.00020999,2]
[315258731,1708969844075,-500.0,0.00020999,2]
[315258732,1708969844084,-500.0,0.00020999,2]
[315258733,1708969844093,-500.0,0.00020999,2]
[315258734,1708969844103,-350.0,0.00020999,2]
[315258735,1708969844113,-500.0,0.00020999,2]
[315258736,1708969844122,-500.0,0.00020999,2]
[315258738,1708969844132,-500.0,0.00020999,2]
[315258739,1708969844141,-500.0,0.00020999,2]
[315258741,1708969844151,-500.0,0.00020999,2]
[315258743,1708969844160,-500.0,0.00020999,2]
[315258744,1708969844169,-500.0,0.00020999,2]
[315258746,1708969844178,-518640.19143739,0.00021,2]
[315258749,1708969844198,-1344.16289685,0.00021,2]
[315258751,1708969844209,-10549.48628499,0.00021,2]
[315258754,1708969844221,-672.68140241,0.00021,2]
[315258776,1708969844444,-500.0,0.00019178,2]
[315258778,1708969844455,-114.56868611,0.00019451,2]
[315258784,1708969844500,-385.43131389,0.00019451,2]
[315258786,1708969844509,-500.0,0.00019451,2]
[315258788,1708969844518,-500.0,0.00019725,2]
[315258790,1708969844528,-500.0,0.00019999,2]
[315258792,1708969844538,-500.0,0.00020219,2]
[315258794,1708969844547,-7726.31562611,0.00021,2]
[315258807,1708969844660,-500.0,0.00019178,2]
[315258809,1708969844669,-102.61772616,0.0001988,3]
[315258811,1708969844681,-7092.37227384,0.0001988,3]
[315258813,1708969844693,-500.0,0.00020219,2]
[315258815,1708969844703,-500.0,0.00020219,2]
[315258817,1708969844712,-500.0,0.00020242,2]
[315258819,1708969844721,-500.0,0.00020272,2]
[315258821,1708969844730,-438.22189719,0.00020446,2]
[315258823,1708969844739,-62194.75413683,0.00021,2]
[315258986,1708969846186,-261.77212706,0.00019177,2]
[315258987,1708969846196,-727.8800468,0.00019177,2]
[315258988,1708969846205,-437.96411568,0.00019879,2]
[315260487,1708970105685,152.50071434,0.00027397,120]
[315260488,1708970105707,14.56255666,0.00027397,120]
[315260591,1708970573553,167.063271,0.00027397,120]
[315260710,1708971034707,-281.44189552,0.00017037,2]
[315260712,1708971034717,-489.28691339,0.00017037,2]
[315260714,1708971034728,-214.98601456,0.00017037,2]
[315260716,1708971034738,-459.873977,0.00017038,2]
[315260722,1708971034781,-724.1116834,0.00017038,2]
[315260724,1708971034791,-235.623164,0.00017187,2]
[315260726,1708971034800,-355.91766979,0.00017348,2]
[315260728,1708971034812,-1441.05823239,0.00017348,2]
[315260798,1708971039578,-18404.00427074,0.00017348,2]
[315260799,1708971039589,-24900.0,0.00017349,2]
[315260800,1708971039598,-197.02351811,0.00017595,2]
[315260801,1708971039607,-2930.75984183,0.00017789,2]
[315260802,1708971039617,-926.4246673,0.00018999,2]
[315260803,1708971039626,-5500.00264993,0.00019,2]
[315260804,1708971039635,-332.4,0.00019168,3]
[315260805,1708971039645,-166.2,0.00019168,3]
[315260806,1708971039656,-498.62,0.00019168,3]
[315260807,1708971039665,-19702.67493575,0.00019175,2]
[315260808,1708971039674,-500.0,0.00019178,2]
[315260809,1708971039683,-500.0,0.00019178,2]
[315260810,1708971039693,-500.0,0.00019178,2]
[315260811,1708971039702,-209.13982258,0.00019178,2]
[315260812,1708971039711,-500.0,0.00019178,2]
[315260813,1708971039720,-457.65145341,0.00019178,2]
[315260814,1708971039729,-432.44409481,0.00019178,2]
[315260815,1708971039738,-500.0,0.00019178,2]
[315260816,1708971039747,-500.0,0.00019178,2]
[315260817,1708971039757,-500.0,0.00019178,2]
[315260818,1708971039766,-500.0,0.00019178,2]
[315260819,1708971039775,-500.0,0.00019178,2]
[315260820,1708971039784,-501.7897385,0.00019178,2]
[315260821,1708971039794,-500.0,0.00019178,2]
[315260822,1708971039803,-500.0,0.00019178,2]
[315260823,1708971039813,-500.0,0.00019178,2]
[315260824,1708971039822,-500.0,0.00019178,2]
[315260825,1708971039831,-502.27989563,0.00019178,2]
[315260826,1708971039840,-431.63023226,0.00019178,2]
[315260827,1708971039850,-581.87051322,0.00019178,2]
[315260828,1708971039859,-154.93802479,0.00019178,2]
[315260829,1708971039868,-318.97915559,0.00019178,2]
[315260830,1708971039876,-500.0,0.00019178,2]
[315260831,1708971039886,-501.78484159,0.00019178,2]
[315260832,1708971039894,-500.0,0.00019178,2]
[315260833,1708971039903,-500.0,0.00019178,2]
[315260834,1708971039913,-500.0,0.00019178,2]
[315260835,1708971039922,-519.72,0.00019178,2]
[315260837,1708971039931,-500.0,0.00019178,2]
[315260838,1708971039940,-500.0,0.00019178,2]
[315260839,1708971039949,-405.80118565,0.00019178,2]
[315260840,1708971039958,-677.84,0.00019178,2]
[315260841,1708971039967,-500.0,0.00019178,2]
[315260842,1708971039976,-500.0,0.00019178,2]
[315260843,1708971039986,-500.97209463,0.00019178,2]
[315260844,1708971039995,-500.0,0.00019178,2]
[315260845,1708971040004,-500.0,0.00019178,2]
[315260846,1708971040013,-501.82744386,0.00019178,2]
[315260847,1708971040023,-500.0,0.00019178,2]
[315260848,1708971040032,-500.0,0.00019178,2]
[315260849,1708971040041,-500.0,0.00019178,2]
[315260850,1708971040050,-500.0,0.00019178,2]
[315260851,1708971040059,-646.89,0.00019178,2]
[315260852,1708971040069,-500.0,0.00019178,2]
[315260853,1708971040078,-500.0,0.00019178,2]
[315260854,1708971040087,-500.0,0.00019178,2]
[315260855,1708971040096,-500.0,0.00019178,2]
[315260856,1708971040105,-500.0,0.00019178,2]
[315260857,1708971040114,-500.0,0.00019178,2]
[315260858,1708971040123,-500.0,0.00019178,2]
[315260859,1708971040133,-500.0,0.00019178,2]
[315260860,1708971040143,-500.0,0.00019178,2]
[315260861,1708971040152,-501.0634752,0.00019178,2]
[315260862,1708971040161,-500.0,0.00019178,2]
[315260863,1708971040171,-500.0,0.00019178,2]
[315260864,1708971040181,-500.0,0.00019178,2]
[315260865,1708971040191,-844.37,0.00019178,2]
[315260866,1708971040200,-500.0,0.00019178,2]
[315260867,1708971040209,-624.62,0.00019178,2]
[315260868,1708971040218,-500.0,0.00019178,2]
[315260869,1708971040227,-500.0,0.00019178,2]
[315260870,1708971040237,-500.0,0.00019178,2]
[315260871,1708971040246,-500.0,0.00019178,2]
[315260872,1708971040255,-500.0,0.00019178,2]
[315260873,1708971040264,-500.0,0.00019178,2]
[315260874,1708971040272,-500.0,0.00019178,2]
[315260875,1708971040282,-500.0,0.00019178,2]
[315260876,1708971040291,-506.31,0.00019178,2]
[315260877,1708971040300,-521.33,0.00019178,2]
[315260878,1708971040309,-10184.91,0.00019178,2]
[315260879,1708971040319,-500.0,0.00019178,2]
[315260880,1708971040329,-732.04,0.00019178,2]
[315260881,1708971040338,-500.0,0.00019178,2]
[315260882,1708971040347,-500.0,0.00019178,2]